[Event "Live Chess"]
[Site "Chess.com"]
[Date "2024.06.02"]
[Round "-"]
[White "slava_ukr"]
[Black "RamsayFlayer"]
[Result "1-0"]
[WhiteElo "2406"]
[BlackElo "1923"]
[TimeControl "300"]
[EndTime "4:12:55 PDT"]
[Termination "slava_ukr won by resignation"]

1. e4 {[%clk 0:04:58]} 1... e5 {[%clk 0:04:50.4]} 2. Nf3 {[%clk 0:04:56.3]} 2...
Nc6 {[%clk 0:04:49.1]} 3. Bb5 {[%clk 0:04:54.1]} 3... a6 {[%clk 0:04:47.8]} 4.
Bxc6 {[%clk 0:04:53.3]} 4... dxc6 {[%clk 0:04:46.7]} 5. O-O {[%clk 0:04:52.9]}
5... f6 {[%clk 0:04:44.2]} 6. d4 {[%clk 0:04:52.1]} 6... exd4 {[%clk 0:04:42.6]}
7. Nxd4 {[%clk 0:04:51.7]} 7... Bd6 {[%clk 0:04:38.9]} 8. Nc3 {[%clk 0:04:41.9]}
8... Ne7 {[%clk 0:04:34.8]} 9. Be3 {[%clk 0:04:37.9]} 9... O-O {[%clk
0:04:32.7]} 10. f4 {[%clk 0:04:36.9]} 10... Ng6 {[%clk 0:04:27.1]} 11. Qf3
{[%clk 0:04:34.6]} 11... c5 {[%clk 0:04:16]} 12. Nde2 {[%clk 0:04:30.5]} 12...
b6 {[%clk 0:04:14.3]} 13. e5 {[%clk 0:04:18.2]} 13... fxe5 {[%clk 0:03:35.3]}
14. Qxa8 {[%clk 0:04:16]} 14... exf4 {[%clk 0:03:34.7]} 15. Bf2 {[%clk
0:04:02.2]} 15... Ne5 {[%clk 0:03:00.6]} 16. Kh1 {[%clk 0:02:53.6]} 16... f3
{[%clk 0:02:52.9]} 17. gxf3 {[%clk 0:02:52.1]} 17... Nxf3 {[%clk 0:02:51.6]} 18.
Bg3 {[%clk 0:02:49.8]} 18... Nxh2 {[%clk 0:02:11.7]} 19. Rxf8+ {[%clk
0:02:20.1]} 19... Qxf8 {[%clk 0:01:35.9]} 20. Kxh2 {[%clk 0:02:09.3]} 20... Qf2+
{[%clk 0:01:29.1]} 21. Qg2 {[%clk 0:02:07.5]} 1-0

[Event "Live Chess"]
[Site "Chess.com"]
[Date "2024.06.02"]
[Round "-"]
[White "Tatarinov_Maxim"]
[Black "ProfPoisson"]
[Result "1-0"]
[WhiteElo "2307"]
[BlackElo "1317"]
[TimeControl "300"]
[EndTime "4:13:13 PDT"]
[Termination "Tatarinov_Maxim won by checkmate"]

1. d4 {[%clk 0:04:57.1]} 1... e6 {[%clk 0:04:56]} 2. c4 {[%clk 0:04:55.2]} 2...
f5 {[%clk 0:04:53.3]} 3. Nc3 {[%clk 0:04:54]} 3... Nf6 {[%clk 0:04:49.8]} 4. g3
{[%clk 0:04:52.6]} 4... Bb4 {[%clk 0:04:48.1]} 5. Bg2 {[%clk 0:04:51.5]} 5...
Bxc3+ {[%clk 0:04:46.2]} 6. bxc3 {[%clk 0:04:49.8]} 6... O-O {[%clk 0:04:42]} 7.
Nf3 {[%clk 0:04:48.3]} 7... d6 {[%clk 0:04:40.3]} 8. O-O {[%clk 0:04:46.6]} 8...
a5 {[%clk 0:04:36.3]} 9. Nd2 {[%clk 0:04:38.9]} 9... Nbd7 {[%clk 0:04:19.8]} 10.
e4 {[%clk 0:04:37.4]} 10... Nb6 {[%clk 0:04:11.9]} 11. c5 {[%clk 0:04:24.8]}
11... Nbd7 {[%clk 0:03:57.3]} 12. cxd6 {[%clk 0:04:22.2]} 12... cxd6 {[%clk
0:03:53.3]} 13. Ba3 {[%clk 0:04:20.3]} 13... Qe7 {[%clk 0:03:43.2]} 14. e5
{[%clk 0:04:18.7]} 14... Ne4 {[%clk 0:03:34.3]} 15. Nxe4 {[%clk 0:04:15]} 15...
fxe4 {[%clk 0:03:31.9]} 16. Bxd6 {[%clk 0:04:14]} 16... Qg5 {[%clk 0:03:26]} 17.
Bxf8 {[%clk 0:04:13.9]} 17... Nxf8 {[%clk 0:03:22.9]} 18. Bxe4 {[%clk
0:04:12.8]} 18... Rb8 {[%clk 0:03:18.6]} 19. Qd3 {[%clk 0:04:04.6]} 19... b5
{[%clk 0:03:14.2]} 20. Rab1 {[%clk 0:04:02]} 20... Bb7 {[%clk 0:03:07.8]} 21.
Qxb5 {[%clk 0:03:51.9]} 21... Bxe4 {[%clk 0:03:01.3]} 22. Qxb8 {[%clk
0:03:50.5]} 22... Qh5 {[%clk 0:02:59.8]} 23. Rbe1 {[%clk 0:03:04.6]} 23... Bf3
{[%clk 0:02:51.8]} 24. Re3 {[%clk 0:03:01.8]} 24... Qg4 {[%clk 0:02:22.4]} 25.
Qd8 {[%clk 0:02:46.6]} 25... h5 {[%clk 0:02:17.1]} 26. Qh4 {[%clk 0:02:43]}
26... Qxh4 {[%clk 0:02:08.2]} 27. gxh4 {[%clk 0:02:42.9]} 27... Bg4 {[%clk
0:02:06.5]} 28. f3 {[%clk 0:02:39.2]} 28... Bf5 {[%clk 0:02:03.6]} 29. Rf2
{[%clk 0:02:36.9]} 29... Ng6 {[%clk 0:02:01.8]} 30. Rb2 {[%clk 0:02:34.2]} 30...
Nxh4 {[%clk 0:01:59.4]} 31. Kf2 {[%clk 0:02:33.6]} 31... Ng6 {[%clk 0:01:53.7]}
32. Rb8+ {[%clk 0:02:28.1]} 32... Kh7 {[%clk 0:01:53.1]} 33. Ra8 {[%clk
0:02:27.4]} 33... Nf4 {[%clk 0:01:48.2]} 34. Rxa5 {[%clk 0:02:24.4]} 34... Nh3+
{[%clk 0:01:45.9]} 35. Kg3 {[%clk 0:02:23.7]} 35... Ng1 {[%clk 0:01:42]} 36. Re1
{[%clk 0:02:18.8]} 36... Nh3 {[%clk 0:01:38.8]} 37. Ra7 {[%clk 0:02:15.9]} 37...
Kh6 {[%clk 0:01:36.1]} 38. Rf7 {[%clk 0:02:10.5]} 38... g5 {[%clk 0:01:33.7]}
39. Rxf5 {[%clk 0:02:08]} 39... exf5 {[%clk 0:01:30.8]} 40. Kxh3 {[%clk
0:02:07.2]} 40... g4+ {[%clk 0:01:28.7]} 41. Kg3 {[%clk 0:02:01.7]} 41... Kg5
{[%clk 0:01:28.6]} 42. f4+ {[%clk 0:02:00.2]} 42... Kh6 {[%clk 0:01:25.6]} 43.
d5 {[%clk 0:01:57.4]} 43... h4+ {[%clk 0:01:22.4]} 44. Kxh4 {[%clk 0:01:55.9]}
44... g3 {[%clk 0:01:20.3]} 45. Kxg3 {[%clk 0:01:55.8]} 45... Kh5 {[%clk
0:01:18.5]} 46. e6 {[%clk 0:01:54.8]} 46... Kg6 {[%clk 0:01:16.8]} 47. e7 {[%clk
0:01:54.1]} 47... Kh7 {[%clk 0:01:15.4]} 48. e8=Q {[%clk 0:01:52.5]} 48... Kh6
{[%clk 0:01:13.2]} 49. Re6+ {[%clk 0:01:51.1]} 49... Kg7 {[%clk 0:01:09.6]} 50.
Qg6+ {[%clk 0:01:50.4]} 50... Kf8 {[%clk 0:01:05]} 51. Re8# {[%clk 0:01:50.3]}
1-0

[Event "Live Chess"]
[Site "Chess.com"]
[Date "2024.06.02"]
[Round "-"]
[White "halfberg"]
[Black "ACM42"]
[Result "1/2-1/2"]
[WhiteElo "1909"]
[BlackElo "2171"]
[TimeControl "300"]
[EndTime "4:13:22 PDT"]
[Termination "Game drawn - insufficient material"]

1. e4 {[%clk 0:04:55.7]} 1... e6 {[%clk 0:04:58.7]} 2. d4 {[%clk 0:04:53]} 2...
d5 {[%clk 0:04:58]} 3. Nc3 {[%clk 0:04:52.1]} 3... Bb4 {[%clk 0:04:56.1]} 4. Qg4
{[%clk 0:04:49.6]} 4... Nf6 {[%clk 0:04:51.9]} 5. Qxg7 {[%clk 0:04:48.5]} 5...
Rg8 {[%clk 0:04:51.1]} 6. Qh6 {[%clk 0:04:47.7]} 6... Rg6 {[%clk 0:04:49.1]} 7.
Qe3 {[%clk 0:04:46.1]} 7... Nxe4 {[%clk 0:04:46.4]} 8. Ne2 {[%clk 0:04:41.5]}
8... c5 {[%clk 0:04:44.2]} 9. a3 {[%clk 0:04:39.8]} 9... cxd4 {[%clk 0:04:20]}
10. Qxd4 {[%clk 0:04:37.2]} 10... Bxc3+ {[%clk 0:04:04.7]} 11. Nxc3 {[%clk
0:04:33.6]} 11... Nc6 {[%clk 0:04:03.3]} 12. Qh8+ {[%clk 0:04:30.4]} 12... Ke7
{[%clk 0:04:01.9]} 13. Qxd8+ {[%clk 0:04:27]} 13... Kxd8 {[%clk 0:03:51]} 14.
Nxe4 {[%clk 0:04:25.9]} 14... dxe4 {[%clk 0:03:49]} 15. Be3 {[%clk 0:04:20]}
15... Kc7 {[%clk 0:03:37.2]} 16. O-O-O {[%clk 0:04:18]} 16... e5 {[%clk
0:03:36.1]} 17. g3 {[%clk 0:04:09.8]} 17... Bg4 {[%clk 0:03:34.5]} 18. Rd2
{[%clk 0:04:04.7]} 18... Bf3 {[%clk 0:03:28.3]} 19. Rg1 {[%clk 0:04:03.1]} 19...
f5 {[%clk 0:03:23.3]} 20. Be2 {[%clk 0:03:51.3]} 20... f4 {[%clk 0:03:10.8]} 21.
Bc5 {[%clk 0:03:45.4]} 21... b6 {[%clk 0:03:02.4]} 22. Bxf3 {[%clk 0:03:29.7]}
22... exf3 {[%clk 0:03:00.3]} 23. Bb4 {[%clk 0:03:25.4]} 23... Nd4 {[%clk
0:02:44.8]} 24. Re1 {[%clk 0:03:03.6]} 24... Ne2+ {[%clk 0:02:32.5]} 25. Rexe2
{[%clk 0:02:56.8]} 25... fxe2 {[%clk 0:02:31]} 26. Rxe2 {[%clk 0:02:56.2]} 26...
fxg3 {[%clk 0:01:56.6]} 27. hxg3 {[%clk 0:02:51]} 27... Re8 {[%clk 0:01:55.1]}
28. Kd2 {[%clk 0:02:37]} 28... e4 {[%clk 0:01:51.1]} 29. Ke3 {[%clk 0:02:35.5]}
29... Rf6 {[%clk 0:01:41.9]} 30. Rd2 {[%clk 0:02:20.1]} 30... Rd8 {[%clk
0:01:28.7]} 31. Rxd8 {[%clk 0:02:06.2]} 31... Kxd8 {[%clk 0:01:27.4]} 32. Be1
{[%clk 0:02:05.5]} 32... Re6 {[%clk 0:01:24.9]} 33. Bd2 {[%clk 0:01:58.2]} 33...
Kd7 {[%clk 0:01:23.6]} 34. Ke2 {[%clk 0:01:55.6]} 34... Kd6 {[%clk 0:01:19.7]}
35. Be3 {[%clk 0:01:55.1]} 35... Kd5 {[%clk 0:01:18.6]} 36. Kd2 {[%clk
0:01:51.3]} 36... a6 {[%clk 0:01:14.7]} 37. a4 {[%clk 0:01:42.1]} 37... b5
{[%clk 0:01:11.4]} 38. axb5 {[%clk 0:01:40.3]} 38... axb5 {[%clk 0:01:10.4]} 39.
Kc3 {[%clk 0:01:39.5]} 39... Rc6+ {[%clk 0:01:04.2]} 40. Kb3 {[%clk 0:01:37.8]}
40... Rc4 {[%clk 0:01:02.1]} 41. c3 {[%clk 0:01:34.5]} 41... Ke5 {[%clk
0:00:59.5]} 42. Kc2 {[%clk 0:01:29.9]} 42... Kf5 {[%clk 0:00:57.8]} 43. b3
{[%clk 0:01:28]} 43... Rc6 {[%clk 0:00:54.2]} 44. Kd2 {[%clk 0:01:23.3]} 44...
Kg4 {[%clk 0:00:52.9]} 45. Bd4 {[%clk 0:01:18.2]} 45... Kf3 {[%clk 0:00:50.8]}
46. Kc2 {[%clk 0:01:13.3]} 46... h5 {[%clk 0:00:43.2]} 47. Kb2 {[%clk
0:01:10.8]} 47... Ke2 {[%clk 0:00:42.1]} 48. Kc2 {[%clk 0:01:09.1]} 48... Rf6
{[%clk 0:00:18.8]} 49. c4 {[%clk 0:01:06.6]} 49... Rxf2 {[%clk 0:00:17.5]} 50.
Bxf2 {[%clk 0:01:03.2]} 50... Kxf2 {[%clk 0:00:16.3]} 51. cxb5 {[%clk
0:00:48.3]} 51... e3 {[%clk 0:00:15.4]} 52. b6 {[%clk 0:00:47.9]} 52... e2
{[%clk 0:00:14.9]} 53. b7 {[%clk 0:00:47.5]} 53... e1=Q {[%clk 0:00:14.5]} 54.
b8=Q {[%clk 0:00:46.8]} 54... Qe2+ {[%clk 0:00:14.4]} 55. Kc3 {[%clk 0:00:44.1]}
55... Qe3+ {[%clk 0:00:13.4]} 56. Kb2 {[%clk 0:00:37.7]} 56... Qxg3 {[%clk
0:00:12.5]} 57. Qf8+ {[%clk 0:00:21.1]} 57... Qf3 {[%clk 0:00:10.9]} 58. Qc5+
{[%clk 0:00:17.3]} 58... Kg2 {[%clk 0:00:09.8]} 59. b4 {[%clk 0:00:15.4]} 59...
h4 {[%clk 0:00:09]} 60. Qg5+ {[%clk 0:00:14.4]} 60... Qg3 {[%clk 0:00:07.6]} 61.
Qd5+ {[%clk 0:00:11.6]} 61... Kg1 {[%clk 0:00:06.8]} 62. Qd4+ {[%clk 0:00:09.8]}
62... Qf2+ {[%clk 0:00:05.8]} 63. Qxf2+ {[%clk 0:00:09.4]} 63... Kxf2 {[%clk
0:00:05.4]} 64. b5 {[%clk 0:00:09.1]} 64... h3 {[%clk 0:00:05.3]} 65. b6 {[%clk
0:00:08.6]} 65... h2 {[%clk 0:00:05.2]} 66. b7 {[%clk 0:00:08.2]} 66... h1=Q
{[%clk 0:00:05]} 67. b8=Q {[%clk 0:00:07.8]} 67... Qf3 {[%clk 0:00:03.5]} 68.
Qb6+ {[%clk 0:00:05.2]} 68... Qe3 {[%clk 0:00:03.4]} 69. Qxe3+ {[%clk
0:00:03.8]} 69... Kxe3 {[%clk 0:00:02.5]} 1/2-1/2

[Event "Live Chess"]
[Site "Chess.com"]
[Date "2024.06.02"]
[Round "-"]
[White "Queensandpawns"]
[Black "ClassyChameleon"]
[Result "1-0"]
[WhiteElo "2250"]
[BlackElo "1530"]
[TimeControl "300"]
[EndTime "4:13:37 PDT"]
[Termination "Queensandpawns won by checkmate"]

1. e4 {[%clk 0:04:59.9]} 1... e5 {[%clk 0:04:58.6]} 2. d4 {[%clk 0:04:58.5]}
2... Nc6 {[%clk 0:04:54.2]} 3. c3 {[%clk 0:04:58.4]} 3... exd4 {[%clk
0:04:52.6]} 4. Nf3 {[%clk 0:04:58.3]} 4... dxc3 {[%clk 0:04:50.9]} 5. Bc4 {[%clk
0:04:56.9]} 5... Nf6 {[%clk 0:04:31.8]} 6. e5 {[%clk 0:04:45.6]} 6... Qe7 {[%clk
0:04:24]} 7. O-O {[%clk 0:04:40.5]} 7... Nxe5 {[%clk 0:04:19.2]} 8. Nxe5 {[%clk
0:04:40.4]} 8... d5 {[%clk 0:04:11.5]} 9. Bd3 {[%clk 0:04:33.2]} 9... Ne4 {[%clk
0:04:08.6]} 10. Nf3 {[%clk 0:04:30.3]} 10... Bg4 {[%clk 0:04:02.6]} 11. Nxc3
{[%clk 0:04:28.9]} 11... Bxf3 {[%clk 0:03:57.8]} 12. Qxf3 {[%clk 0:04:25.7]}
12... O-O-O {[%clk 0:03:56.7]} 13. Nxe4 {[%clk 0:04:16]} 13... dxe4 {[%clk
0:03:54.7]} 14. Bxe4 {[%clk 0:04:15.9]} 14... Qb4 {[%clk 0:03:45.5]} 15. a3
{[%clk 0:04:12.1]} 15... Qb5 {[%clk 0:03:37.8]} 16. Be3 {[%clk 0:04:08.4]} 16...
Bc5 {[%clk 0:03:31.2]} 17. Bxc5 {[%clk 0:04:05.8]} 17... Qxc5 {[%clk 0:03:29.4]}
18. Bxb7+ {[%clk 0:04:05]} 18... Kb8 {[%clk 0:03:24.8]} 19. Ba6 {[%clk
0:04:03.2]} 19... Qb6 {[%clk 0:03:15]} 20. Be2 {[%clk 0:04:01]} 20... f6 {[%clk
0:03:08.9]} 21. b4 {[%clk 0:03:37.6]} 21... Rd2 {[%clk 0:02:59.8]} 22. Rfd1
{[%clk 0:03:29.3]} 22... Rhd8 {[%clk 0:02:56.1]} 23. Rxd2 {[%clk 0:03:26.5]}
23... Rxd2 {[%clk 0:02:55.3]} 24. Rd1 {[%clk 0:03:26.4]} 24... Rb2 {[%clk
0:02:51.8]} 25. Rd8# {[%clk 0:03:17.2]} 1-0

[Event "Live Chess"]
[Site "Chess.com"]
[Date "2024.06.02"]
[Round "-"]
[White "booktrunk"]
[Black "lateforthesky"]
[Result "0-1"]
[WhiteElo "1493"]
[BlackElo "2076"]
[TimeControl "300"]
[EndTime "4:13:38 PDT"]
[Termination "lateforthesky won by resignation"]

1. d4 {[%clk 0:04:56.3]} 1... Nf6 {[%clk 0:04:57.7]} 2. Nc3 {[%clk 0:04:53.5]}
2... d5 {[%clk 0:04:54.1]} 3. Bf4 {[%clk 0:04:52.5]} 3... g6 {[%clk 0:04:52.8]}
4. a3 {[%clk 0:04:38.1]} 4... Bg7 {[%clk 0:04:51.3]} 5. Nf3 {[%clk 0:04:22.7]}
5... O-O {[%clk 0:04:45.2]} 6. h3 {[%clk 0:04:09.2]} 6... b6 {[%clk 0:04:27.8]}
7. e3 {[%clk 0:04:03.5]} 7... Bb7 {[%clk 0:04:26.6]} 8. Be2 {[%clk 0:03:51.7]}
8... c5 {[%clk 0:04:24.8]} 9. dxc5 {[%clk 0:03:49.5]} 9... bxc5 {[%clk
0:04:23.2]} 10. O-O {[%clk 0:03:47.4]} 10... Nc6 {[%clk 0:04:19.7]} 11. b3
{[%clk 0:03:39.6]} 11... Nh5 {[%clk 0:03:43.8]} 12. Bh2 {[%clk 0:03:37.1]} 12...
Bxc3 {[%clk 0:03:41.1]} 13. Rb1 {[%clk 0:03:33.9]} 13... Bg7 {[%clk 0:03:36.6]}
14. b4 {[%clk 0:03:25.3]} 14... cxb4 {[%clk 0:03:28.4]} 15. axb4 {[%clk
0:03:24]} 15... Nf6 {[%clk 0:03:26]} 16. b5 {[%clk 0:03:23]} 16... Nb8 {[%clk
0:03:18]} 17. Nd4 {[%clk 0:03:21.9]} 17... Nbd7 {[%clk 0:03:14.5]} 18. Rc1
{[%clk 0:03:16.1]} 18... Qb6 {[%clk 0:03:03.6]} 19. c4 {[%clk 0:03:11.5]} 19...
e5 {[%clk 0:03:01.7]} 20. Nf3 {[%clk 0:03:04.1]} 20... Rfe8 {[%clk 0:02:42.2]}
21. c5 {[%clk 0:02:53.8]} 21... Nxc5 {[%clk 0:02:40.2]} 22. Nxe5 {[%clk
0:02:52.8]} 22... Nfe4 {[%clk 0:02:31.7]} 23. f3 {[%clk 0:02:45.7]} 23... Bxe5
{[%clk 0:02:29.2]} 24. fxe4 {[%clk 0:02:44.4]} 24... Bxh2+ {[%clk 0:02:27.2]}
25. Kxh2 {[%clk 0:02:43.1]} 25... Nxe4 {[%clk 0:02:18.9]} 26. Qb3 {[%clk
0:02:37.2]} 26... Qd6+ {[%clk 0:02:12.4]} 27. Kg1 {[%clk 0:02:30.4]} 27... Ng3
{[%clk 0:02:07.7]} 28. Rf2 {[%clk 0:02:30.3]} 28... Nxe2+ {[%clk 0:02:05.8]} 29.
Rxe2 {[%clk 0:02:29.1]} 29... d4 {[%clk 0:02:00.4]} 30. Rf1 {[%clk 0:02:24.4]}
30... Bd5 {[%clk 0:01:58.3]} 31. Qd3 {[%clk 0:02:22.2]} 31... dxe3 {[%clk
0:01:48.5]} 32. Rxe3 {[%clk 0:02:17.5]} 32... Qc5 {[%clk 0:01:47.2]} 33. Re1
{[%clk 0:02:14.9]} 33... Rxe3 {[%clk 0:01:35.8]} 34. Rxe3 {[%clk 0:02:11.5]}
34... Re8 {[%clk 0:01:31.9]} 35. Kf2 {[%clk 0:02:09.7]} 35... Bc4 {[%clk
0:01:24.8]} 36. Qd2 {[%clk 0:02:07]} 36... Qxe3+ {[%clk 0:01:22.8]} 37. Qxe3
{[%clk 0:02:05.6]} 37... Rxe3 {[%clk 0:01:22.3]} 38. Kxe3 {[%clk 0:02:05.3]}
38... Bxb5 {[%clk 0:01:21.8]} 0-1

[Event "Live Chess"]
[Site "Chess.com"]
[Date "2024.06.02"]
[Round "-"]
[White "Ksenia_2013"]
[Black "friarnator"]
[Result "0-1"]
[WhiteElo "977"]
[BlackElo "2172"]
[TimeControl "300"]
[EndTime "4:13:39 PDT"]
[Termination "friarnator won by checkmate"]

1. e4 {[%clk 0:04:58.1]} 1... Nf6 {[%clk 0:04:58.4]} 2. Nc3 {[%clk 0:04:56.3]}
2... d5 {[%clk 0:04:57.2]} 3. e5 {[%clk 0:04:54.7]} 3... d4 {[%clk 0:04:55.9]}
4. exf6 {[%clk 0:04:52.3]} 4... dxc3 {[%clk 0:04:55.8]} 5. fxg7 {[%clk 0:04:50]}
5... cxd2+ {[%clk 0:04:55]} 6. Bxd2 {[%clk 0:04:44.9]} 6... Bxg7 {[%clk
0:04:53.8]} 7. Bc4 {[%clk 0:04:41.7]} 7... O-O {[%clk 0:04:46.5]} 8. Bd3 {[%clk
0:04:38.7]} 8... e5 {[%clk 0:04:43.3]} 9. Qh5 {[%clk 0:04:35.3]} 9... e4 {[%clk
0:04:41.6]} 10. Bxe4 {[%clk 0:04:31.5]} 10... f5 {[%clk 0:04:31.5]} 11. Bd3
{[%clk 0:04:13.8]} 11... Qe8+ {[%clk 0:04:26.6]} 12. Qxe8 {[%clk 0:04:07.4]}
12... Rxe8+ {[%clk 0:04:26.5]} 13. Be3 {[%clk 0:04:05.5]} 13... f4 {[%clk
0:04:24.7]} 14. Ne2 {[%clk 0:04:00.7]} 14... fxe3 {[%clk 0:04:22.1]} 15. fxe3
{[%clk 0:03:59]} 15... Rxe3 {[%clk 0:04:20]} 16. Bc4+ {[%clk 0:03:56.3]} 16...
Kh8 {[%clk 0:04:18.3]} 17. Rf1 {[%clk 0:03:52.9]} 17... Bg4 {[%clk 0:04:15.3]}
18. O-O-O {[%clk 0:03:51]} 18... Nc6 {[%clk 0:03:58.2]} 19. Nd4 {[%clk
0:03:40.3]} 19... Bxd1 {[%clk 0:03:35.5]} 20. Rxd1 {[%clk 0:03:35.1]} 20... Nxd4
{[%clk 0:03:33.9]} 21. Bd5 {[%clk 0:03:29.3]} 21... c6 {[%clk 0:03:29.6]} 22.
Bf7 {[%clk 0:03:23.6]} 22... Rf8 {[%clk 0:03:25.7]} 23. Rxd4 {[%clk 0:03:21.8]}
23... Rxf7 {[%clk 0:03:22.3]} 24. Rd8+ {[%clk 0:03:19.4]} 24... Rf8 {[%clk
0:03:21.6]} 25. Rxf8+ {[%clk 0:03:16.8]} 25... Bxf8 {[%clk 0:03:21.5]} 26. Kd2
{[%clk 0:03:15.6]} 26... Bh6 {[%clk 0:03:20.3]} 27. c4 {[%clk 0:03:12]} 27...
Kg7 {[%clk 0:03:19.3]} 28. b4 {[%clk 0:03:11]} 28... Kf6 {[%clk 0:03:19.2]} 29.
a4 {[%clk 0:03:10]} 29... Ke5 {[%clk 0:03:19.1]} 30. b5 {[%clk 0:03:09.1]} 30...
Kd4 {[%clk 0:03:19]} 31. bxc6 {[%clk 0:03:06.1]} 31... bxc6 {[%clk 0:03:18.9]}
32. a5 {[%clk 0:03:02.4]} 32... Kxc4 {[%clk 0:03:17.3]} 33. a6 {[%clk
0:03:01.4]} 33... Kd4 {[%clk 0:03:16.7]} 34. Kc2 {[%clk 0:02:58.8]} 34... c5
{[%clk 0:03:16.6]} 35. Kb2 {[%clk 0:02:57.5]} 35... Rc3 {[%clk 0:03:15.4]} 36.
Ka2 {[%clk 0:02:55.6]} 36... Kc4 {[%clk 0:03:15.3]} 37. Kb2 {[%clk 0:02:53.8]}
37... Kb4 {[%clk 0:03:15.2]} 38. Ka2 {[%clk 0:02:52.4]} 38... Rb3 {[%clk
0:03:14.2]} 39. Ka1 {[%clk 0:02:50.9]} 39... Kc3 {[%clk 0:03:13.3]} 40. Ka2
{[%clk 0:02:49.1]} 40... Kc2 {[%clk 0:03:12.3]} 41. Ka1 {[%clk 0:02:47.7]} 41...
Ra3# {[%clk 0:03:11.6]} 0-1

[Event "Live Chess"]
[Site "Chess.com"]
[Date "2024.06.02"]
[Round "-"]
[White "yarek"]
[Black "matt1979"]
[Result "1-0"]
[WhiteElo "1752"]
[BlackElo "1413"]
[TimeControl "300"]
[EndTime "4:13:56 PDT"]
[Termination "yarek won by resignation"]

1. e4 {[%clk 0:04:57.8]} 1... d6 {[%clk 0:04:58.7]} 2. d4 {[%clk 0:04:56.5]}
2... Nf6 {[%clk 0:04:57.5]} 3. Bd3 {[%clk 0:04:51.6]} 3... Nbd7 {[%clk
0:04:56.1]} 4. f4 {[%clk 0:04:49.3]} 4... e5 {[%clk 0:04:55.1]} 5. d5 {[%clk
0:04:41.3]} 5... Be7 {[%clk 0:04:51.1]} 6. f5 {[%clk 0:04:39]} 6... c6 {[%clk
0:04:48.9]} 7. c4 {[%clk 0:04:36.3]} 7... Qc7 {[%clk 0:04:44.7]} 8. Nc3 {[%clk
0:04:31.6]} 8... Nc5 {[%clk 0:04:42.6]} 9. Nf3 {[%clk 0:04:25]} 9... Nxd3+
{[%clk 0:04:34.2]} 10. Qxd3 {[%clk 0:04:22.8]} 10... a6 {[%clk 0:04:20.9]} 11.
O-O {[%clk 0:04:19.8]} 11... c5 {[%clk 0:04:12.4]} 12. Kh1 {[%clk 0:04:15.9]}
12... Bd7 {[%clk 0:04:08.9]} 13. b3 {[%clk 0:04:11.8]} 13... Rb8 {[%clk
0:04:02.1]} 14. Rg1 {[%clk 0:04:03.1]} 14... b5 {[%clk 0:04:00.4]} 15. g4 {[%clk
0:03:59.6]} 15... b4 {[%clk 0:03:55.9]} 16. Ne2 {[%clk 0:03:56.4]} 16... h6
{[%clk 0:03:52]} 17. h4 {[%clk 0:03:54]} 17... a5 {[%clk 0:03:26.3]} 18. g5
{[%clk 0:03:40.1]} 18... hxg5 {[%clk 0:03:24.5]} 19. Bxg5 {[%clk 0:03:35.7]}
19... Kf8 {[%clk 0:03:06.6]} 20. Kg2 {[%clk 0:03:29.4]} 20... Nh5 {[%clk
0:02:55.6]} 21. Kf2 {[%clk 0:03:26.5]} 21... Bxg5 {[%clk 0:02:50.7]} 22. hxg5
{[%clk 0:03:22]} 22... Nf4 {[%clk 0:02:44.2]} 23. Nxf4 {[%clk 0:03:17.6]} 23...
exf4 {[%clk 0:02:43.1]} 24. Rh1 {[%clk 0:03:12.5]} 24... Ke7 {[%clk 0:02:40.2]}
25. Qd2 {[%clk 0:03:05.4]} 25... f6 {[%clk 0:02:17.8]} 26. Qxf4 {[%clk
0:02:58.8]} 26... fxg5 {[%clk 0:02:11]} 27. Qxg5+ {[%clk 0:02:57.3]} 27... Kf7
{[%clk 0:02:03]} 28. Qg6+ {[%clk 0:02:55.6]} 28... Ke7 {[%clk 0:01:57.8]} 29.
Qxg7+ {[%clk 0:02:53.7]} 29... Kd8 {[%clk 0:01:53.9]} 30. Rxh8+ {[%clk
0:02:51.9]} 30... Be8 {[%clk 0:01:50.7]} 31. Qf6+ {[%clk 0:02:48.4]} 31... Kd7
{[%clk 0:01:48.6]} 32. Qe6+ {[%clk 0:02:40]} 1-0

[Event "Live Chess"]
[Site "Chess.com"]
[Date "2024.06.02"]
[Round "-"]
[White "Zhevzh1k7"]
[Black "juniortay"]
[Result "0-1"]
[WhiteElo "1107"]
[BlackElo "2363"]
[TimeControl "300"]
[EndTime "4:14:24 PDT"]
[Termination "juniortay won by checkmate"]

1. e4 {[%clk 0:04:57.3]} 1... e5 {[%clk 0:04:57.3]} 2. Nf3 {[%clk 0:04:55.3]}
2... Nf6 {[%clk 0:04:57.2]} 3. Nc3 {[%clk 0:04:52.8]} 3... Nc6 {[%clk
0:04:56.4]} 4. Bc4 {[%clk 0:04:50.4]} 4... Nxe4 {[%clk 0:04:55]} 5. Nxe4 {[%clk
0:04:48.1]} 5... d5 {[%clk 0:04:54.1]} 6. Bb5 {[%clk 0:04:44.4]} 6... dxe4
{[%clk 0:04:52.7]} 7. Bxc6+ {[%clk 0:04:43.4]} 7... bxc6 {[%clk 0:04:51.6]} 8.
Nxe5 {[%clk 0:04:39.8]} 8... Qd5 {[%clk 0:04:48.8]} 9. Ng4 {[%clk 0:04:37.5]}
9... Bc5 {[%clk 0:04:42.6]} 10. O-O {[%clk 0:04:33.8]} 10... O-O {[%clk
0:04:38.8]} 11. Re1 {[%clk 0:04:28.4]} 11... f5 {[%clk 0:04:34.6]} 12. Ne3
{[%clk 0:04:26.9]} 12... Qf7 {[%clk 0:04:33.1]} 13. d3 {[%clk 0:04:19.4]} 13...
f4 {[%clk 0:04:28.5]} 14. Nc4 {[%clk 0:04:14.8]} 14... f3 {[%clk 0:04:20]} 15.
dxe4 {[%clk 0:04:07.6]} 15... Qg6 {[%clk 0:04:08.9]} 16. Ne3 {[%clk 0:03:54.9]}
16... Bxe3 {[%clk 0:04:05.7]} 17. Kf1 {[%clk 0:03:52.6]} 17... Qxg2# {[%clk
0:04:03.6]} 0-1